fUST/lending_fUST_20250827
["ID","MTS","AMOUNT","RATE_DAILY","PERIOD"]
[381625567,1756299068968,-151.0,0.00022191,7]
[381625568,1756299068977,-550.73,0.00022191,2]
[381625569,1756299068987,-151.0,0.00022191,7]
[381625570,1756299068996,-480.0,0.00022191,2]
[381625571,1756299069005,-480.0,0.00022191,2]
[381625572,1756299069015,-679.72,0.00022191,2]
[381625573,1756299069024,-810.427002,0.00022191,7]
[381625574,1756299069033,-2407.025019,0.00022191,7]
[381625575,1756299069043,-151.0,0.00022191,7]
[381625576,1756299069052,-810.427002,0.00022191,7]
[381625577,1756299069061,-480.0,0.00022191,2]
[381625578,1756299069071,-2407.025019,0.00022191,7]
[381625579,1756299069080,-154.077561,0.00022191,7]
[381625580,1756299069090,-810.427002,0.00022191,7]
[381625581,1756299069099,-810.42700972,0.00022191,7]
[381625582,1756299069109,-2407.025019,0.00022191,7]
[381625583,1756299069119,-151.0,0.00022191,7]
[381625584,1756299069129,-2407.025019,0.00022191,7]
[381625585,1756299069139,-760.477957,0.00022191,7]
[381625586,1756299069148,-151.0,0.00022191,7]
[381625587,1756299069158,-760.477957,0.00022191,7]
[381625588,1756299069167,-480.0,0.00022191,2]
[381625589,1756299069177,-2407.025019,0.00022191,7]
[381625590,1756299069186,-2407.025019,0.00022191,7]
[381625591,1756299069196,-760.477957,0.00022191,7]
[381625592,1756299069205,-151.0,0.00022191,7]
[381625593,1756299069215,-760.477957,0.00022191,7]
[381625594,1756299069224,-151.0,0.00022191,7]
[381625595,1756299069234,-151.0,0.00022191,7]
[381625596,1756299069244,-151.0,0.00022191,7]
[381625597,1756299069254,-829.46,0.00022191,2]
[381625598,1756299069263,-695.89,0.00022191,2]
[381625599,1756299069273,-220.811172,0.00022191,7]
[381625600,1756299069282,-2407.025019,0.00022191,7]
[381625601,1756299069291,-151.0,0.00022191,7]
[381625602,1756299069301,-2407.0250142,0.00022191,7]
[381625603,1756299069310,-760.477957,0.00022191,7]
[381625604,1756299069320,-151.0,0.00022191,7]
[381625605,1756299069329,-151.0,0.00022191,7]
[381625606,1756299069339,-760.477957,0.00022191,7]
[381625607,1756299069349,-577.42,0.00022191,2]
[381625608,1756299069359,-151.0,0.00022191,7]
[381625609,1756299069368,-480.0,0.00022191,2]
[381625610,1756299069378,-680.83,0.00022191,2]
[381625611,1756299069387,-760.477957,0.00022191,7]
[381625612,1756299069398,-760.47795,0.00022191,7]
[381625613,1756299069407,-600.93,0.00022191,2]
[381625614,1756299069416,-151.0,0.00022191,7]
[381625615,1756299069426,-151.0,0.00022191,7]
[381625616,1756299069435,-319.70777967,0.00022191,2]
[381625617,1756299069444,-480.0,0.00022191,2]
[381625618,1756299069454,-1995.59,0.00022191,2]
[381625619,1756299069463,-480.0,0.00022191,2]
[381625620,1756299069474,-480.0,0.00022191,2]
[381625621,1756299069483,-1631.46,0.00022191,2]
[381625622,1756299069493,-1590.45,0.00022191,2]
[381625623,1756299069502,-480.0,0.00022191,2]
[381625624,1756299069511,-480.0,0.00022191,2]
[381625625,1756299069521,-151.0,0.00022191,7]
[381625626,1756299069531,-539.05,0.00022191,2]
[381625627,1756299069540,-1082.724398,0.00022191,7]
[381625628,1756299069550,-151.0,0.00022191,7]
[381625629,1756299069559,-1082.724398,0.00022191,7]
[381625630,1756299069569,-431.20651679,0.00022191,2]
[381625631,1756299069579,-712.28,0.00022191,2]
[381625632,1756299069588,-480.0,0.00022191,2]
[381625633,1756299069598,-151.0,0.00022191,7]
[381625634,1756299069607,-1082.724398,0.00022191,7]
[381625635,1756299069617,-151.0,0.00022191,7]
[381625636,1756299069626,-1082.724398,0.00022191,7]
[381625637,1756299069635,-638.72,0.00022191,2]
[381625638,1756299069646,-480.0,0.00022191,2]
[381625639,1756299069655,-1082.724398,0.00022191,7]
[381625640,1756299069666,-480.0,0.00022191,2]
[381625641,1756299069676,-1082.724398,0.00022191,7]
[381625642,1756299069685,-480.0,0.00022191,2]
[381625643,1756299069695,-480.0,0.00022191,2]
[381625644,1756299069704,-1082.724398,0.00022191,7]
[381625645,1756299069713,-1082.724394,0.00022191,7]
[381625646,1756299069723,-480.0,0.00022191,2]
[381625647,1756299069733,-480.0,0.00022191,2]
[381625648,1756299069742,-400.077242,0.00022191,2]
[381625649,1756299069751,-755.02,0.00022191,2]
[381625650,1756299069761,-480.0,0.00022191,2]
[381625651,1756299069771,-480.0,0.00022191,2]
[381625652,1756299069781,-480.0,0.00022191,2]
[381625653,1756299069790,-789.18,0.00022191,2]
[381625654,1756299069800,-480.0,0.00022191,2]
[381625655,1756299069809,-480.0,0.00022191,2]
[381625656,1756299069818,-480.0,0.00022191,2]
[381625657,1756299069827,-685.55,0.00022191,2]
[381625658,1756299069837,-480.0,0.00022191,2]
[381625659,1756299069847,-2224.28,0.00022191,2]
[381625660,1756299069857,-349.23470122,0.00022191,2]
[381625661,1756299069866,-480.0,0.00022191,2]
[381625662,1756299069876,-280.0,0.00022191,2]
[381625663,1756299069885,-480.0,0.00022191,2]
[381625664,1756299069896,-622.18,0.00022191,2]
[381625665,1756299069905,-1015.89,0.00022191,2]
[381625666,1756299069915,-480.0,0.00022191,2]
[381625667,1756299069924,-2100.672395,0.00022191,7]
[381625668,1756299069933,-480.0,0.00022191,2]
[381625669,1756299069943,-151.0,0.00022191,7]
[381625670,1756299069953,-2100.672395,0.00022191,7]
[381625671,1756299069962,-631.08,0.00022191,2]
[381625672,1756299069972,-151.0,0.00022191,7]
[381625673,1756299069982,-748.302236,0.00022191,7]
[381625674,1756299069992,-748.302236,0.00022191,7]
[381625675,1756299070001,-1801.64,0.00022191,2]
[381625676,1756299070010,-2100.672395,0.00022191,7]
[381625677,1756299070019,-2100.672395,0.00022191,7]
[381625678,1756299070029,-748.302236,0.00022191,7]
[381625679,1756299070038,-748.302236,0.00022191,7]
[381625680,1756299070047,-480.0,0.00022191,2]
[381625681,1756299070057,-748.302236,0.00022191,7]
[381625682,1756299070066,-748.302236,0.00022191,7]
[381625683,1756299070075,-480.0,0.00022191,2]
[381625684,1756299070084,-2100.672395,0.00022191,7]
[381625685,1756299070094,-908.23,0.00022191,2]
[381625686,1756299070104,-2100.672395,0.00022191,7]
[381625687,1756299070114,-678.47,0.00022191,2]
[381625688,1756299070124,-748.302236,0.00022191,7]
[381625689,1756299070133,-480.0,0.00022191,2]
[381625690,1756299070144,-480.0,0.00022191,2]
[381625691,1756299070153,-748.302231,0.00022191,7]
[381625692,1756299070164,-2100.672395,0.00022191,7]
[381625693,1756299070174,-2100.672391,0.00022191,7]
[381625694,1756299070183,-235.09111712,0.00022191,2]
[381625695,1756299070193,-480.0,0.00022191,2]
[381625696,1756299070203,-480.0,0.00022191,2]
[381625697,1756299070214,-698.69,0.00022191,2]
[381625698,1756299070224,-2888.9,0.00022191,2]
[381625699,1756299070233,-480.0,0.00022191,2]
[381625700,1756299070243,-480.0,0.00022191,2]
[381625701,1756299070254,-480.0,0.00022191,2]
[381625702,1756299070263,-151.0,0.00022191,7]
[381625703,1756299070273,-901.06,0.00022191,2]
[381625704,1756299070282,-151.0,0.00022191,7]
[381625705,1756299070292,-480.0,0.00022191,2]
[381625706,1756299070301,-151.0,0.00022191,7]
[381625707,1756299070311,-151.0,0.00022191,7]
[381625708,1756299070321,-480.0,0.00022191,2]
[381625709,1756299070330,-151.0,0.00022191,7]
[381625710,1756299070339,-151.0,0.00022191,7]
[381625711,1756299070349,-151.0,0.00022191,7]
[381625712,1756299070358,-151.0,0.00022191,7]
[381625713,1756299070368,-1290.3,0.00022191,2]
[381625714,1756299070378,-1110.35,0.00022191,2]
[381625715,1756299070538,-151.0,0.00022191,7]
[381625716,1756299070559,-911.51,0.00022191,2]
[381625717,1756299070569,-711.28,0.00022191,2]
[381625718,1756299070579,-151.0,0.00022191,7]
[381625719,1756299070588,-151.0,0.00022191,7]
[381625720,1756299070597,-151.0,0.00022191,7]
[381625721,1756299070607,-480.0,0.00022191,2]
[381625722,1756299070616,-480.0,0.00022191,2]
[381625723,1756299070625,-530.62784354,0.00022191,2]
[381625724,1756299070635,-492.57,0.00022191,2]
[381625725,1756299070645,-151.0,0.00022191,7]
[381625726,1756299070655,-151.0,0.00022191,7]
[381625727,1756299070669,-245.521069,0.00022191,7]
[381625728,1756299070679,-480.0,0.00022191,2]
[381625729,1756299070688,-245.521069,0.00022191,7]
[381625730,1756299070698,-151.0,0.00022191,7]
[381625731,1756299070707,-480.0,0.00022191,2]
[381625732,1756299070718,-151.0,0.00022191,7]
[381625733,1756299070729,-1247.14,0.00022191,2]
[381625734,1756299070739,-151.0,0.00022191,7]
[381625735,1756299070750,-245.521069,0.00022191,7]
[381625736,1756299070759,-179.3945173,0.000222,69]
[381625737,1756299070769,-1626.0441212,0.00022262,2]
[381625738,1756299070778,-151.0,0.000223,10]
[381625739,1756299070787,-1505.428705,0.00022319,2]
[381625740,1756299070797,-1680.0,0.0002233,2]
[381625741,1756299070806,-420.0,0.0002233,2]
[381625742,1756299070815,-420.0,0.0002233,2]
[381625743,1756299070825,-227.0,0.0002233,2]
[381625744,1756299070836,-239.0,0.0002233,2]
[381625745,1756299070845,-551.59644189,0.00022332,2]
[381625746,1756299070856,-160.0,0.00022344,2]
[381625747,1756299070865,-871.81002756,0.00022355,2]
[381625748,1756299070875,-500.0,0.0002241,2]
[381625749,1756299070885,-500.0,0.00022411,2]
[381625750,1756299070894,-1000.0,0.00022421,2]
[381625751,1756299070903,-1000.0,0.00022421,2]
[381625752,1756299070913,-577.94018355,0.00022421,2]
[381625753,1756299070923,-1004.0734374,0.00022421,2]
[381625754,1756299070932,-588.93873768,0.00022421,2]
[381625755,1756299070942,-710.76229774,0.00022421,2]
[381625756,1756299070952,-1000.0,0.00022421,2]
[381625757,1756299070962,-1000.0,0.00022421,2]
[381625758,1756299070971,-1005.97401283,0.00022421,2]
[381625759,1756299070980,-1000.0,0.00022421,2]
[381625760,1756299070990,-1000.0,0.00022421,2]
[381625761,1756299070999,-1000.0,0.00022421,2]
[381625762,1756299071009,-1000.0,0.00022421,2]
[381625763,1756299071019,-1000.0,0.00022421,2]
[381625764,1756299071028,-1012.56600855,0.00022421,2]
[381625765,1756299071038,-1000.0,0.00022421,2]
[381625766,1756299071047,-1000.0,0.00022421,2]
[381625767,1756299071057,-1000.0,0.00022421,2]
[381625768,1756299071066,-1000.0,0.00022421,2]
[381625769,1756299071075,-1000.0,0.00022421,2]
[381625770,1756299071085,-1000.0,0.00022421,2]
[381625771,1756299071094,-1077.74853552,0.00022421,2]
[381625772,1756299071104,-1000.0,0.00022421,2]
[381625773,1756299071114,-1000.0,0.00022421,2]
[381625774,1756299071124,-1000.0,0.00022421,2]
[381625775,1756299071133,-1000.0,0.00022421,2]
[381625776,1756299071143,-1000.0,0.00022421,2]
[381625777,1756299071153,-1000.0,0.00022421,2]
[381625778,1756299071163,-1000.0,0.00022421,2]
[381625779,1756299071172,-1098.68508446,0.00022421,2]
[381625780,1756299071182,-197.38868026,0.00022421,2]
[381625781,1756299071192,-1000.0,0.00022421,2]
[381625782,1756299071202,-893.6560695,0.00022421,2]
[381625783,1756299071212,-529.88765004,0.00022421,2]
[381625784,1756299071222,-1000.0,0.00022421,2]
[381625785,1756299071231,-1000.0,0.00022421,2]
[381625786,1756299071242,-1000.0,0.00022421,2]
[381625787,1756299071252,-1000.0,0.00022421,2]
[381625788,1756299071263,-1000.0,0.00022421,2]
[381625789,1756299071272,-503.56407155,0.00022421,2]
[381625790,1756299071282,-1000.0,0.00022421,2]
[381625791,1756299071297,-1112.7633669,0.00022421,2]
[381625792,1756299071307,-1000.0,0.00022421,2]
[381625793,1756299071317,-1000.0,0.00022421,2]
[381625794,1756299071333,-1000.0,0.00022421,2]
[381625795,1756299071343,-999.45917636,0.00022421,2]
[381625796,1756299071353,-500.60121131,0.00022421,2]
[381625797,1756299071363,-1000.0,0.00022421,2]
[381625798,1756299071373,-1000.0,0.00022421,2]
[381625799,1756299071384,-575.67741229,0.00022421,2]
[381625800,1756299071402,-1000.0,0.00022421,2]
[381625801,1756299071411,-1000.0,0.00022421,2]
[381625802,1756299071421,-1000.0,0.00022421,2]
[381625803,1756299071432,-1000.0,0.00022421,2]
[381625804,1756299071442,-1000.0,0.00022421,2]
[381625805,1756299071452,-1000.0,0.00022421,2]
[381625806,1756299071462,-1000.0,0.00022421,2]
[381625807,1756299071472,-153.37699255,0.00022421,2]
[381625808,1756299071481,-1000.0,0.00022421,2]
[381625809,1756299071491,-1000.0,0.00022421,2]
[381625810,1756299071501,-151.0,0.00022421,7]
[381625811,1756299071511,-151.0,0.00022421,7]
[381625812,1756299071521,-261.0,0.00022436,2]
[381625813,1756299071530,-151.0,0.00022444,2]
[381625814,1756299071540,-266.74402892,0.00022444,2]
[381625815,1756299071550,-239.28245469,0.00022444,2]
[381625816,1756299071559,-500.0,0.00022444,2]
[381625817,1756299071569,-151.0,0.00022444,2]
[381625818,1756299071579,-151.0,0.00022444,2]
[381625819,1756299071588,-500.0,0.00022444,2]
[381625820,1756299071599,-151.0,0.00022444,2]
[381625821,1756299071609,-500.0,0.00022444,2]
[381625822,1756299071619,-151.0,0.00022444,2]
[381625823,1756299071629,-151.0,0.00022444,2]
[381625824,1756299071639,-151.0,0.00022444,2]
[381625825,1756299071652,-151.0,0.00022444,2]
[381625826,1756299071662,-500.0,0.00022462,2]
[381625827,1756299071676,-500.0,0.00022462,2]
[381625828,1756299071686,-151.0,0.00022462,2]
[381625829,1756299071696,-500.0,0.00022462,2]
[381625830,1756299071705,-500.0,0.00022462,2]
[381625831,1756299071715,-1015.0,0.00022462,2]
[381625832,1756299071724,-557.78466304,0.00022462,2]
[381625833,1756299071734,-151.0,0.00022462,2]
[381625834,1756299071744,-151.70332095,0.00022462,2]
[381625835,1756299071754,-151.48383882,0.00022462,2]
[381625836,1756299071763,-502.28071032,0.00022462,2]
[381625837,1756299071773,-151.50520129,0.00022462,2]
[381625838,1756299071783,-500.0,0.00022462,2]
[381625839,1756299071792,-500.0,0.00022462,2]
[381625840,1756299071802,-606.92893483,0.00022462,2]
[381625841,1756299071812,-480.0,0.00022465,2]
[381625842,1756299071821,-480.0,0.00022465,2]
[381625843,1756299071831,-480.0,0.00022465,2]
[381625844,1756299071840,-480.0,0.00022465,2]
[381625845,1756299071850,-480.0,0.00022465,2]
[381625846,1756299071859,-480.0,0.00022465,2]
[381625847,1756299071869,-480.0,0.00022465,2]
[381625848,1756299071878,-480.0,0.00022465,2]
[381625849,1756299071888,-480.0,0.00022465,2]
[381625850,1756299071902,-493.86,0.00022465,2]
[381625851,1756299071912,-480.0,0.00022465,2]
[381625852,1756299071927,-480.0,0.00022465,2]
[381625853,1756299071940,-480.0,0.00022465,2]
[381625854,1756299071950,-480.0,0.00022465,2]
[381625855,1756299071959,-480.0,0.00022465,2]
[381625856,1756299071969,-480.0,0.00022465,2]
[381625857,1756299071978,-480.0,0.00022465,2]
[381625858,1756299071987,-562.7,0.00022465,2]
[381625859,1756299071997,-480.0,0.00022465,2]
[381625860,1756299072007,-226.76477656,0.00022465,2]
[381625861,1756299072016,-524.95,0.00022465,2]
[381625862,1756299072026,-480.0,0.00022465,2]
[381625863,1756299072036,-480.0,0.00022465,2]
[381625864,1756299072045,-240.96530088,0.00022465,2]
[381625865,1756299072054,-480.0,0.00022465,2]
[381625866,1756299072064,-480.0,0.00022465,2]
[381625867,1756299072073,-538.52,0.00022465,2]
[381625868,1756299072083,-550.62,0.00022465,2]
[381625869,1756299072093,-480.0,0.00022465,2]
[381625870,1756299072103,-480.0,0.00022465,2]
[381625871,1756299072113,-480.0,0.00022465,2]
[381625872,1756299072129,-480.0,0.00022465,2]
[381625873,1756299072145,-480.0,0.00022465,2]
[381625874,1756299072155,-576.16,0.00022465,2]
[381625875,1756299072164,-480.0,0.00022465,2]
[381625876,1756299072174,-480.0,0.00022465,2]
[381625877,1756299072184,-662.66,0.00022465,2]
[381625878,1756299072193,-480.0,0.00022465,2]
[381625879,1756299072203,-480.0,0.00022465,2]
[381625880,1756299072212,-480.0,0.00022465,2]
[381625881,1756299072222,-480.0,0.00022465,2]
[381625882,1756299072231,-582.51,0.00022465,2]
[381625883,1756299072250,-480.0,0.00022465,2]
[381625884,1756299072262,-480.0,0.00022465,2]
[381625885,1756299072272,-480.0,0.00022465,2]
[381625886,1756299072283,-500.0,0.00022465,2]
[381625887,1756299072293,-480.0,0.00022465,2]
[381625888,1756299072303,-480.0,0.00022465,2]
[381625889,1756299072314,-480.0,0.00022465,2]
[381625890,1756299072324,-480.0,0.00022465,2]
[381625891,1756299072335,-480.0,0.00022465,2]
[381625892,1756299072345,-240.33078166,0.00022465,2]
[381625893,1756299072356,-480.0,0.00022465,2]
[381625894,1756299072367,-480.0,0.00022465,2]
[381625895,1756299072376,-480.0,0.00022465,2]
[381625896,1756299072387,-480.0,0.00022465,2]
[381625897,1756299072398,-185.6824076,0.00022465,2]
[381625898,1756299072408,-546.6,0.00022465,2]
[381625899,1756299072419,-523.83,0.00022465,2]
[381625900,1756299072429,-480.0,0.00022465,2]
[381625901,1756299072439,-480.0,0.00022465,2]
[381625902,1756299072450,-480.0,0.00022465,2]
[381625903,1756299072460,-480.0,0.00022465,2]
[381625904,1756299072472,-256.1582459,0.00022465,2]
[381625905,1756299072482,-480.0,0.00022465,2]
[381625906,1756299072492,-480.0,0.00022465,2]
[381625907,1756299072502,-480.0,0.00022465,2]
[381625908,1756299072513,-367.14940187,0.00022465,2]
[381625909,1756299072526,-484.63857434,0.00022465,2]
[381625910,1756299072536,-480.0,0.00022465,2]
[381625911,1756299072546,-480.0,0.00022465,2]
[381625912,1756299072556,-480.0,0.00022465,2]
[381625913,1756299072566,-480.0,0.00022465,2]
[381625914,1756299072577,-480.0,0.00022465,2]
[381625915,1756299072587,-200.04554455,0.00022465,2]
[381625916,1756299072598,-480.0,0.00022465,2]
[381625917,1756299072609,-480.0,0.00022465,2]
[381625918,1756299072620,-480.0,0.00022465,2]
[381625919,1756299072630,-606.2,0.00022465,2]
[381625920,1756299072641,-706.9,0.00022465,2]
[381625921,1756299072657,-233.1895123,0.00022465,2]
[381625922,1756299072670,-480.0,0.00022465,2]
[381625923,1756299072680,-480.0,0.00022465,2]
[381625924,1756299072691,-480.0,0.00022465,2]
[381625925,1756299072702,-882.63,0.00022465,2]
[381625926,1756299072712,-480.0,0.00022465,2]
[381625927,1756299072722,-151.0,0.00022465,7]
[381625928,1756299072732,-480.0,0.00022465,2]
[381625929,1756299072743,-480.0,0.00022465,2]
[381625930,1756299072752,-151.0,0.00022465,7]
[381625931,1756299072762,-151.0,0.00022465,7]
[381625932,1756299072772,-480.0,0.00022465,2]
[381625933,1756299072782,-480.0,0.00022465,2]
[381625934,1756299072793,-714.33,0.00022465,2]
[381625935,1756299072804,-612.47,0.00022465,2]
[381625936,1756299072814,-480.0,0.00022465,2]
[381625937,1756299072824,-480.0,0.00022465,2]
[381625938,1756299072834,-151.0,0.00022465,7]
[381625939,1756299072844,-480.0,0.00022465,2]
[381625940,1756299072856,-480.0,0.00022465,2]
[381625941,1756299072866,-480.0,0.00022465,2]
[381625942,1756299072876,-480.0,0.00022465,2]
[381625943,1756299072886,-480.0,0.00022465,2]
[381625944,1756299072899,-480.0,0.00022465,2]
[381625945,1756299072909,-512.19,0.00022465,2]
[381625946,1756299072919,-480.0,0.00022465,2]
[381625947,1756299072928,-480.0,0.00022465,2]
[381625948,1756299072938,-480.0,0.00022465,2]
[381625949,1756299072948,-480.0,0.00022465,2]
[381625950,1756299072959,-483.70498111,0.00022465,2]
[381625951,1756299072968,-480.0,0.00022465,2]
[381625952,1756299072978,-151.179221,0.00022465,7]
[381625953,1756299072989,-509.06,0.00022465,2]
[381625954,1756299072999,-627.14,0.00022465,2]
[381625955,1756299073008,-612.82,0.00022465,2]
[381625956,1756299073018,-480.0,0.00022465,2]
[381625957,1756299073028,-481.22,0.00022465,2]
[381625958,1756299073038,-624.19,0.00022465,2]
[381625959,1756299073048,-480.0,0.00022465,2]
[381625960,1756299073057,-480.0,0.00022465,2]
[381625961,1756299073067,-151.0,0.00022465,7]
[381625962,1756299073165,-480.0,0.00022465,2]
[381625963,1756299073175,-480.0,0.00022465,2]
[381625964,1756299073185,-480.0,0.00022465,2]
[381625965,1756299073195,-480.0,0.00022465,2]
[381625966,1756299073204,-528.91,0.00022465,2]
[381625967,1756299073213,-480.0,0.00022465,2]
[381625968,1756299073223,-480.0,0.00022465,2]
[381625969,1756299073233,-608.41,0.00022465,2]
[381625970,1756299073242,-480.0,0.00022465,2]
[381625971,1756299073252,-480.0,0.00022465,2]
[381625972,1756299073261,-480.0,0.00022465,2]
[381625973,1756299073271,-480.0,0.00022465,2]
[381625974,1756299073280,-480.0,0.00022465,2]
[381625975,1756299073290,-547.44,0.00022465,2]
[381625976,1756299073299,-151.0,0.00022465,7]
[381625977,1756299073309,-480.0,0.00022465,2]
[381625978,1756299073318,-480.0,0.00022465,2]
[381625979,1756299073328,-480.0,0.00022465,2]
[381625980,1756299073338,-480.0,0.00022465,2]
[381625981,1756299073347,-967.44,0.00022465,2]
[381625982,1756299073356,-480.0,0.00022465,2]
[381625983,1756299073366,-522.91,0.00022465,2]
[381625984,1756299073376,-480.0,0.00022465,2]
[381625985,1756299073386,-200.0,0.00022465,7]
[381625986,1756299073398,-200.0,0.00022465,7]
[381625987,1756299073407,-480.0,0.00022465,2]
[381625988,1756299073416,-200.0,0.00022465,7]
[381625989,1756299073426,-200.0,0.00022465,7]
[381625990,1756299073435,-486.45,0.00022465,2]
[381625991,1756299073445,-624.58,0.00022465,2]
[381625992,1756299073454,-480.0,0.00022465,2]
[381625993,1756299073463,-377.52172376,0.00022465,2]
[381625994,1756299073472,-480.0,0.00022465,2]
[381625995,1756299073482,-480.0,0.00022465,2]
[381625996,1756299073490,-480.0,0.00022465,2]
[381625997,1756299073499,-480.0,0.00022465,2]
[381625998,1756299073510,-480.0,0.00022465,2]
[381625999,1756299073520,-480.0,0.00022465,2]
[381626000,1756299073529,-480.0,0.00022465,2]
[381626001,1756299073539,-1513.62,0.00022465,2]
[381626002,1756299073548,-1456.95,0.00022465,2]
[381626003,1756299073558,-480.0,0.00022465,2]
[381626004,1756299073569,-740.6,0.00022465,2]
[381626005,1756299073581,-156.582629,0.00022465,7]
[381626006,1756299073591,-561.33,0.00022465,2]
[381626007,1756299073600,-151.0,0.00022465,7]
[381626008,1756299073610,-1610.42,0.00022465,2]
[381626009,1756299073619,-480.0,0.00022465,2]
[381626010,1756299073628,-155.144906,0.00022465,7]
[381626011,1756299073638,-507.15,0.00022465,2]
[381626012,1756299073648,-480.0,0.00022465,2]
[381626013,1756299073657,-480.0,0.00022465,2]
[381626014,1756299073668,-628.11,0.00022465,2]
[381626015,1756299073681,-569.45,0.00022465,2]
[381626016,1756299073690,-480.0,0.00022465,2]
[381626017,1756299073700,-1196.37,0.00022465,2]
[381626018,1756299073712,-1184.81,0.00022465,2]
[381626019,1756299073721,-480.0,0.00022465,2]
[381626020,1756299073731,-480.0,0.00022465,2]
[381626021,1756299073740,-480.0,0.00022465,2]
[381626022,1756299073750,-595.51,0.00022465,2]
[381626023,1756299073760,-974.71,0.00022465,2]
[381626024,1756299073769,-680.85,0.00022465,2]
[381626025,1756299073779,-480.0,0.00022465,2]
[381626026,1756299073789,-480.0,0.00022465,2]
[381626027,1756299073799,-420.22057519,0.00022465,2]
[381626028,1756299073808,-480.0,0.00022465,2]
[381626029,1756299073817,-151.0,0.00022465,7]
[381626030,1756299073826,-642.37,0.00022465,2]
[381626031,1756299073835,-151.0,0.00022465,7]
[381626032,1756299073844,-480.0,0.00022465,2]
[381626033,1756299073854,-480.0,0.00022465,2]
[381626034,1756299073863,-480.0,0.00022465,2]
[381626035,1756299073872,-480.0,0.00022465,2]
[381626036,1756299073882,-480.0,0.00022465,2]
[381626037,1756299073892,-620.04,0.00022465,2]
[381626038,1756299073901,-1799.04,0.00022465,2]
[381626039,1756299073911,-151.0,0.00022465,7]
[381626040,1756299073919,-151.0,0.00022465,7]
[381626041,1756299073929,-888.29,0.00022465,2]
[381626042,1756299073938,-511.13,0.00022465,2]
[381626043,1756299073947,-615.79,0.00022465,2]
[381626044,1756299073957,-1249.5,0.00022465,2]
[381626045,1756299073966,-337.96127786,0.00022465,2]
[381626046,1756299073976,-480.0,0.00022465,2]
[381626047,1756299073985,-837.84,0.00022465,2]
[381626048,1756299073995,-480.0,0.00022465,2]
[381626049,1756299074004,-480.0,0.00022465,2]
[381626050,1756299074014,-488.18,0.00022465,2]
[381626051,1756299074023,-841.78,0.00022465,2]
[381626052,1756299074033,-818.54,0.00022465,2]
[381626053,1756299074043,-634.58,0.00022465,2]
[381626054,1756299074052,-480.0,0.00022465,2]
[381626055,1756299074061,-480.0,0.00022465,2]
[381626056,1756299074071,-480.0,0.00022465,2]
[381626057,1756299074081,-480.0,0.00022465,2]
[381626058,1756299074091,-1132.23,0.00022465,2]
[381626059,1756299074101,-813.62181882,0.00022465,2]
[381626060,1756299074110,-480.0,0.00022465,2]
[381626061,1756299074119,-480.0,0.00022465,2]
[381626062,1756299074129,-1020.11,0.00022465,2]
[381626063,1756299074138,-630.18,0.00022465,2]
[381626064,1756299074149,-987.21,0.00022465,2]
[381626065,1756299074159,-151.0,0.00022465,7]
[381626066,1756299074168,-151.0,0.00022465,7]